bitfinex/quotes_ETHUSD_20241129
["timestamp","ask_amount","ask_price","bid_price","bid_amount"]
[1732893520730,0.55,3643.5,3643.1,0.18186]
[1732893520932,0.55,3643.6,3643.1,0.18186]
[1732893522546,3.29459,3643.6,3643.1,0.18186]
[1732893522727,2.74495,3643.1,3642.0,4.26923]
[1732893523035,0.55,3643.0,3642.2,2.74558]
[1732893523342,0.55,3643.1,3642.0,1.5235]
[1732893523543,0.55,3643.1,3642.0,4.26918]
[1732893523700,2.74498,3643.1,3642.0,4.26918]
[1732893523901,0.55,3643.0,3642.1,2.74565]
[1732893524095,0.55,3643.0,3642.2,0.701496]
[1732893524300,0.55,3643.2,3642.3,0.02745158]
[1732893524606,3.29484,3643.2,3642.3,0.02745158]
[1732893524800,0.55,3643.1,3642.3,0.02745159]
[1732893525001,0.55,3643.1,3642.2,0.701496]
[1732893525203,0.55,3643.1,3642.3,0.4970646]
[1732893525413,0.55,3643.1,3642.4,0.02745159]
[1732893525615,0.55,3643.4,3642.5,1.5582]
[1732893525944,0.55013411,3643.3,3642.9,1.5582]
[1732893526144,2.74409,3644.2,3643.1,2.7449]
[1732893526376,2.74404,3644.3,3643.2,2.74482]
[1732893526499,0.55874624,3643.4,3643.0,2.74499]
[1732893526798,1.5178,3644.4,3643.4,2.74466]
[1732893527001,2.74364,3644.8,3643.4,2.74466]
[1732893527002,4.34284,3644.8,3643.7,2.74439]
[1732893527252,0.55863653,3644.3,3643.5,4.616726]
[1732893527592,3.30265653,3644.3,3643.5,1.872166]
[1732893527798,0.55863653,3644.3,3643.5,1.872166]
[1732893528099,2.74409,3644.2,3643.5,1.872166]
[1732893528300,1.5899,3644.1,3643.1,1.6188]
[1732893528611,0.55,3644.0,3643.1,1.6188]
[1732893528820,2.74435,3643.9,3643.1,1.6188]
[1732893529012,0.55,3643.8,3643.1,1.6188]
[1732893529318,0.55,3643.8,3642.4,1.5985]
[1732893529524,0.55,3643.2,3642.4,1.5985]
[1732893529695,3.29484,3643.2,3642.4,1.5985]
[1732893529906,0.55,3643.3,3642.4,4.34392]
[1732893530217,0.55,3643.0,3642.4,1.5985]
[1732893530570,0.55,3643.0,3642.5,0.20955646]
[1732893531362,0.55,3643.0,3642.4,1.5985]
[1732893532062,0.55,3643.0,3642.1,1.5908]
[1732893532217,2.74507,3642.9,3642.1,1.5908]
[1732893532418,0.55,3643.0,3642.1,4.33646]
[1732893532760,0.55,3643.0,3642.1,1.5908]
[1732893533256,0.55,3643.0,3642.2,0.433653]
[1732893533559,0.55,3643.0,3642.4,2.74544]
[1732893533973,0.55,3643.0,3642.3,0.02745174]
[1732893534166,0.55,3643.0,3642.2,3.179193]
[1732893534470,1.6648,3643.4,3642.3,0.02745176]
[1732893534624,3.12310298,3644.6,3643.3,1.5158]
[1732893534625,1.5052,3644.6,3643.3,1.5158]
[1732893534817,2.74399,3644.4,3643.3,1.5158]
[1732893535061,4.24899,3644.6,3643.3,1.5158]
[1732893535062,2.74402,3644.3,3643.3,1.5158]
[1732893535258,2.74409,3644.2,3643.3,1.5158]
[1732893535433,2.74423,3644.1,3643.3,1.941858]
[1732893535631,0.55877388,3643.7,3643.3,1.5158]
[1732893536036,4.249,3644.6,3643.3,1.5158]
[1732893536245,2.74346,3645.1,3644.0,2.74421]
[1732893536418,1.6322,3645.2,3643.6,1.66943754]
[1732893536618,1.6322,3645.2,3643.8,1.642]
[1732893537136,1.6322,3645.2,3644.0,2.74423]
[1732893537316,1.6322,3645.2,3643.8,4.38637]
[1732893537531,0.5566334,3644.7,3643.8,1.642]
[1732893537936,1.5547,3644.5,3643.8,1.642]
[1732893538226,0.5566334,3644.7,3643.8,0.21089438]
[1732893538531,2.74326,3645.3,3644.3,2.74396]
[1732893538763,1.5598,3645.4,3644.1,1.6179]
[1732893538945,0.54900453,3645.0,3644.1,1.6179]
[1732893539264,0.54900453,3645.0,3644.2,0.16179]
[1732893539563,2.74309,3645.6,3644.5,4.37765]
[1732893539770,0.56140831,3645.2,3644.5,4.37765]
[1732893540061,0.56140831,3645.2,3644.7,2.7437]
[1732893540300,1.5598,3645.8,3644.5,1.6338]
[1732893540421,0.55,3645.7,3644.6,0.16338]
[1732893540620,0.56151808,3645.3,3644.8,2.74355]
[1732893540822,0.56151808,3645.3,3644.9,2.74353]
[1732893541068,0.56151808,3645.3,3645.0,2.74347]
[1732893541216,0.56151808,3645.3,3645.0,3.292177]
[1732893541422,0.56151808,3645.3,3645.0,0.548707]
[1732893541623,0.56151808,3645.3,3644.5,1.6338]
[1732893541846,0.56151808,3645.3,3644.6,2.74376]
[1732893542122,0.56151808,3645.3,3644.5,1.6338]
[1732893542635,0.56151808,3645.3,3644.9,2.74354]
[1732893542860,1.6037,3646.2,3645.2,2.74333]
[1732893543060,2.152207,3646.2,3645.3,1.5263]
[1732893543239,2.152207,3646.2,3645.2,2.74328]
[1732893543435,2.152207,3646.2,3645.4,2.74314]
[1732893543642,1.6037,3646.2,3645.4,2.74311]
[1732893543844,1.6037,3646.2,3645.5,2.7431]
[1732893544076,1.6037,3646.2,3645.0,1.5629]
[1732893544077,1.6037,3646.2,3645.2,2.74326]
[1732893544367,1.6037,3646.2,3645.0,4.30637]
[1732893544368,1.6037,3646.2,3645.3,2.74324]
[1732893544726,4.34634,3646.2,3645.0,4.30637]
[1732893544931,0.5598475,3645.8,3645.2,2.74332]
[1732893545158,0.5598475,3645.8,3645.3,2.74324]
[1732893545576,0.5598475,3645.8,3645.1,0.76809414]
[1732893545774,1.6037,3646.2,3645.3,2.74324]
[1732893546063,0.55,3646.1,3645.3,2.74324]
[1732893546274,0.55,3646.1,3645.2,2.74331]
[1732893546478,0.53730441,3645.9,3645.3,2.74325]
[1732893546623,0.53730441,3645.9,3645.0,4.30638]
[1732893546969,0.53730441,3645.9,3645.2,2.74326]
[1732893547264,0.53730441,3645.9,3645.3,2.74324]
[1732893547770,0.53730441,3645.9,3645.4,2.74317]
[1732893547926,0.53730441,3645.9,3645.6,2.74302]
[1732893548134,0.53730441,3645.9,3645.6,2.74298]
[1732893548339,0.53730441,3645.9,3645.6,0.548615]
[1732893549114,0.53730441,3645.9,3645.3,2.74324]
[1732893549310,0.53730441,3645.9,3645.1,0.430638]
[1732893549509,2.1403,3645.8,3644.5,2.74385]
[1732893549693,2.74326,3645.3,3644.3,4.327]
[1732893550034,2.74311,3645.5,3644.5,2.7438]
[1732893550440,2.1403,3645.8,3644.3,1.583]
[1732893550734,2.74327,3645.3,3644.3,4.32699]
[1732893550893,3.29315,3645.5,3644.4,3.467214]
[1732893551094,0.55,3645.5,3644.5,2.74381]
[1732893551394,2.74326,3645.3,3644.4,3.467214]
[1732893551595,0.55,3645.6,3644.7,2.74368]
[1732893551833,0.54504922,3645.0,3644.6,2.74373]
[1732893552135,0.54504922,3645.0,3644.5,2.74384]
[1732893552514,0.54504922,3645.0,3644.6,2.74376]
[1732893552714,0.54504922,3645.0,3644.7,2.74368]
[1732893552922,1.5903,3645.8,3644.4,0.723284]
[1732893553108,1.5903,3645.8,3645.1,1.5508]
[1732893553305,2.64179788,3645.6,3644.7,1.5508]
[1732893553524,1.6259,3645.2,3644.3,4.2948]
[1732893553825,1.6259,3645.2,3644.2,0.16179]
[1732893554209,4.3693,3645.2,3644.2,0.16179]
[1732893554433,2.7434,3645.1,3644.2,0.16179]
[1732893554825,7.01105788,3645.2,3644.2,2.90582]
[1732893555022,0.5360042,3644.9,3644.2,2.90583]
[1732893555250,0.5360042,3644.9,3644.3,0.456163]
[1732893555753,0.5360042,3644.9,3644.3,3.200103]
[1732893555906,0.5360042,3644.9,3644.3,0.456163]
[1732893556313,3.2795942,3644.9,3644.2,0.16179]
[1732893556596,1.6516,3644.7,3643.8,2.74433]
[1732893556712,1.6516,3644.7,3643.6,1.5696]
[1732893556713,2.7439,3644.5,3643.6,1.5696]
[1732893556914,1.6516,3644.7,3643.6,2.74452]
[1732893556915,4.39533,3644.7,3643.6,2.74452]
[1732893557151,1.6516,3644.7,3644.0,2.74422]
[1732893557451,0.5360042,3644.9,3644.4,2.74392]
[1732893557633,1.5371,3645.5,3644.2,2.74408]
[1732893557849,0.00612387,3647.1,3644.0,0.55160416]
[1732893557850,2.64179788,3646.1,3644.8,1.5873]
[1732893558013,1.5875,3646.0,3644.9,2.74355]
[1732893558210,0.54088594,3645.3,3645.1,2.74339]
[1732893558409,0.54088594,3645.3,3645.2,0.548694]
[1732893558851,1.5875,3646.0,3645.2,0.548694]
[1732893559007,1.5875,3646.0,3645.1,2.74339]
[1732893559215,1.5875,3646.0,3645.2,2.74328]
[1732893559456,4.33023,3646.0,3645.2,2.74328]
[1732893559657,4.33023,3646.0,3645.0,2.74343]
[1732893559868,4.33023,3646.0,3645.1,2.7434]
[1732893560156,0.54110535,3645.6,3645.3,2.74321]
[1732893560521,0.54110535,3645.6,3645.2,0.548694]
[1732893561165,0.54110535,3645.6,3645.3,2.74324]
[1732893561458,0.54110535,3645.6,3645.1,2.7434]
[1732893561970,0.54110535,3645.6,3645.2,2.74332]
[1732893562266,0.54110535,3645.6,3645.3,0.548672]
[1732893562467,0.54110535,3645.6,3645.2,2.74332]
[1732893562839,0.54110535,3645.6,3645.4,2.74316]
[1732893563047,0.54110535,3645.6,3645.5,2.7431]
[1732893563239,0.54110535,3645.6,3645.4,2.74316]
[1732893563662,0.54110535,3645.6,3645.2,2.74333]
[1732893563825,0.54110535,3645.6,3645.4,2.74317]
[1732893564457,0.54110535,3645.6,3645.5,2.7431]
[1732893564696,1.662,3646.3,3645.6,2.74297]
[1732893564907,1.5874,3646.7,3645.4,1.6242]
[1732893565195,0.55013367,3646.0,3645.5,0.16516297]
[1732893565564,2.74288,3645.8,3645.0,1.5846]
[1732893565899,1.6638,3645.9,3645.0,4.32808]
[1732893566063,0.55013367,3646.0,3645.0,4.32808]
[1732893566604,0.55013367,3646.0,3645.2,2.74331]
[1732893567157,0.55013367,3646.0,3645.1,2.7434]
[1732893567391,3.29288367,3646.0,3645.1,3.17619]
[1732893567593,0.55013367,3646.0,3645.3,2.74323]
[1732893567764,0.55013367,3646.0,3645.4,4.27333]
[1732893568161,0.55013367,3646.0,3645.1,1.9963]
[1732893568359,1.6409,3645.9,3645.1,3.17613]
[1732893568590,2.74295,3645.8,3645.1,0.4328]
[1732893568787,3.29287367,3646.0,3645.3,1.5635]
[1732893569117,2.74293,3645.8,3645.1,3.17619]
[1732893569270,3.29287367,3646.0,3645.1,0.4328]
[1732893569472,2.7428,3645.9,3645.1,2.74336]
[1732893570010,2.74297,3645.7,3645.1,2.74336]
[1732893570318,0.55013367,3646.0,3644.0,1.68313801]
[1732893570319,1.5874,3645.6,3644.5,2.7438]
[1732893570472,0.55,3646.3,3645.3,2.74324]
[1732893570679,2.7421,3646.9,3645.4,0.02743116]
[1732893570871,2.7421,3646.9,3646.0,2.74266]
[1732893570872,0.54472018,3646.4,3646.0,2.74266]
[1732893571113,0.54472018,3646.4,3645.9,2.74279]
[1732893571471,0.54472018,3646.4,3646.0,2.74272]
[1732893571693,0.54472018,3646.4,3645.8,1.5012]
[1732893572041,1.57,3647.1,3646.1,2.74258]
[1732893572188,1.727,3647.1,3645.8,1.5012]
[1732893572390,1.727,3647.1,3646.4,2.7424]
[1732893572693,1.57,3647.1,3646.1,2.74261]
[1732893573001,1.57,3647.1,3646.0,2.74271]
[1732893573207,2.74199,3647.0,3646.1,2.74259]
[1732893573408,2.74199,3647.0,3646.0,2.74271]
[1732893573409,0.53808218,3646.5,3646.0,2.74271]
[1732893573625,0.53808218,3646.5,3645.3,1.6628]
[1732893573626,1.5563,3646.4,3645.3,1.6628]
[1732893573791,1.5563,3646.4,3645.4,2.74318]
[1732893573992,2.74259,3646.2,3645.4,2.74318]
[1732893574202,1.5563,3646.4,3645.3,1.6628]
[1732893574203,4.29874,3646.4,3645.5,2.7431]
[1732893574426,2.74256,3646.3,3645.5,2.7431]
[1732893574635,2.74256,3646.3,3645.5,3.458014]
[1732893574940,1.5563,3646.4,3645.5,3.458014]
[1732893575144,4.29873,3646.4,3645.5,3.458014]
[1732893575344,4.29873,3646.4,3645.6,2.74302]
[1732893575702,1.5563,3646.4,3645.7,2.74294]
[1732893575900,1.5563,3646.4,3645.7,3.3630244]
[1732893576137,1.5563,3646.4,3645.4,2.74317]
[1732893576138,2.74271,3646.1,3645.4,2.74317]
[1732893576632,0.54147944,3646.2,3645.6,2.74302]
[1732893576944,4.29873,3646.4,3645.3,1.6628]
[1732893576945,1.5563,3646.4,3645.3,1.6628]
[1732893577303,0.53473972,3646.3,3645.3,1.6628]
[1732893577508,0.53473972,3646.3,3645.8,2.74286]
[1732893577707,0.53473972,3646.3,3645.8,3.291449]
[1732893577949,0.53473972,3646.3,3645.9,2.7428]
[1732893578307,0.53473972,3646.3,3645.8,0.548589]
[1732893578499,0.53473972,3646.3,3645.7,2.74295]
[1732893579107,0.53473972,3646.3,3645.9,2.74278]
[1732893579751,0.53473972,3646.3,3645.8,2.74286]
[1732893579918,0.53473972,3646.3,3645.9,2.74279]
[1732893580244,0.53473972,3646.3,3645.8,2.74288]
[1732893580401,0.53473972,3646.3,3646.0,2.74272]
[1732893580818,0.53473972,3646.3,3645.8,2.74288]
[1732893581112,0.53473972,3646.3,3645.9,2.74278]
[1732893581618,0.53473972,3646.3,3645.7,2.74295]
[1732893581818,0.53473972,3646.3,3645.8,2.74288]
[1732893582015,0.53473972,3646.3,3645.7,0.548605]
[1732893582220,0.53473972,3646.3,3645.6,2.74296]
[1732893582555,3.27723972,3646.3,3645.5,2.7431]
[1732893582764,3.1765376,3646.3,3645.0,0.2743]
[1732893583074,2.74266,3646.1,3645.1,2.7434]
[1732893583370,1.6109,3645.7,3645.1,3.17327]
[1732893583578,1.6109,3645.7,3645.2,2.74333]
[1732893583887,1.6109,3645.7,3645.1,0.42988]
[1732893583888,2.74265,3646.1,3645.4,2.74317]
[1732893584170,4.35349,3646.2,3645.5,2.74308]
[1732893584375,1.6109,3646.2,3645.5,2.74308]
[1732893584555,4.35354,3646.2,3645.6,0.274308]
[1732893584729,2.74266,3646.1,3645.6,0.274308]
[1732893585072,4.35348,3646.2,3645.6,0.274308]
[1732893585272,1.6109,3646.2,3645.6,0.274308]
[1732893585571,1.6109,3646.2,3645.6,3.017308]
[1732893585774,0.53473972,3646.3,3645.7,4.66820871]
[1732893585981,0.53473972,3646.3,3645.8,2.74284]
[1732893586126,0.53473972,3646.3,3645.8,2.74288]
[1732893586327,0.53473972,3646.3,3645.7,3.0446208]
[1732893586562,0.53473972,3646.3,3645.8,0.49208288]
[1732893586931,0.53473972,3646.3,3645.8,3.23495288]
[1732893587328,0.53473972,3646.3,3645.9,2.7428]
[1732893587533,0.53473972,3646.3,3645.8,0.49208288]
[1732893588081,0.53473972,3646.3,3645.8,3.23490288]
[1732893588370,0.53473972,3646.3,3645.9,0.60029879]
[1732893588877,0.53473972,3646.3,3645.8,2.74287]
[1732893589054,1.5764,3646.6,3646.0,2.74267]
[1732893589364,1.5764,3646.6,3645.8,2.74287]
[1732893590370,0.54916432,3646.4,3645.8,2.74287]
[1732893590573,0.54916432,3646.4,3646.0,2.74273]
[1732893590775,0.54916432,3646.4,3646.0,0.54856]
[1732893590980,0.54916432,3646.4,3646.0,2.74271]
[1732893591380,0.54916432,3646.4,3645.5,1.6019]
[1732893591381,0.54916432,3646.4,3645.9,2.74279]
[1732893592075,0.54916432,3646.4,3646.0,2.74269]
[1732893593042,0.54916432,3646.4,3645.9,2.74278]
[1732893593250,0.54916432,3646.4,3646.0,2.74272]
[1732893593449,0.54916432,3646.4,3646.1,2.74263]
[1732893594340,0.54916432,3646.4,3646.1,2.74261]
[1732893594507,1.5333,3647.0,3646.2,1.6048]
[1732893594703,1.5333,3647.0,3645.4,5.91609788]
[1732893594704,2.74225,3646.7,3646.0,2.74271]
[1732893594846,2.74225,3646.7,3646.0,3.483201]
[1732893595488,2.74225,3646.7,3646.1,2.74263]
[1732893595658,0.5469583,3646.8,3646.0,0.740551]
[1732893595865,0.5469583,3646.8,3646.3,2.74245]
[1732893596059,3.2890883,3646.8,3646.2,2.74258]
[1732893596391,0.5469583,3646.8,3646.3,2.74248]
[1732893596976,0.5469583,3646.8,3646.1,2.74258]
[1732893597163,2.74224,3646.7,3646.1,2.74258]
[1732893597377,2.74224,3646.7,3646.1,3.484827]
[1732893597550,2.74224,3646.7,3646.2,2.74257]
[1732893597748,0.5469583,3646.8,3645.9,3.01709]
[1732893597749,0.5469583,3646.8,3645.9,0.2743]
[1732893597990,1.6384,3646.7,3645.8,2.74288]
[1732893598495,4.38065,3646.7,3646.0,2.74272]
[1732893598657,4.38065,3646.7,3646.0,2.74266]
[1732893598860,1.6384,3646.7,3646.2,2.74252]
[1732893599295,1.6384,3646.7,3646.0,3.044356]
[1732893599296,1.6384,3646.7,3646.0,0.301696]
[1732893599454,1.6384,3646.7,3646.1,2.74262]
[1732893599797,1.6384,3646.7,3646.2,2.74257]
[1732893600310,2.74236,3646.5,3645.9,2.74273]
[1732893600504,1.6384,3646.7,3645.9,2.74273]
[1732893600793,4.38062,3646.7,3646.1,2.74262]
[1732893600954,2.74229,3646.6,3646.0,2.74272]
[1732893601350,1.6384,3646.7,3646.1,2.74259]
[1732893601599,1.6384,3646.7,3646.3,2.74246]
[1732893601902,4.38061,3646.7,3645.6,0.2743]
[1732893602098,4.38061,3646.7,3646.1,2.7426]
[1732893602099,1.6384,3646.7,3646.1,2.7426]
[1732893602250,1.6384,3646.7,3646.2,2.74253]
[1732893602450,1.6384,3646.7,3646.1,2.74258]
[1732893602881,1.6384,3646.7,3646.3,2.74249]
[1732893603065,0.5469583,3646.8,3646.3,2.74249]
[1732893603371,0.5469583,3646.8,3646.4,0.274249]
[1732893603575,0.5469583,3646.8,3646.2,4.39268]
[1732893603859,0.5469583,3646.8,3646.6,2.74227]
[1732893604077,0.5469583,3646.8,3646.4,2.74237]
[1732893604450,0.5469583,3646.8,3646.2,4.39266]
[1732893604650,3.2891283,3646.8,3646.3,2.74249]
[1732893604851,3.2891283,3646.8,3645.7,3.0]
[1732893604852,2.74224,3646.7,3646.1,2.74265]
[1732893605084,2.74224,3646.7,3646.1,3.181925]
[1732893605299,2.7425,3646.3,3645.7,0.2743]
[1732893605448,4.34202,3646.2,3645.7,0.2743]
[1732893605656,4.34202,3646.2,3645.7,3.01725]
[1732893605861,2.74273,3646.1,3645.7,0.2743]
[1732893606079,1.5994,3646.2,3645.7,3.0172]
[1732893606287,1.5994,3646.2,3645.6,0.2743]
[1732893606451,1.5994,3646.2,3645.7,3.0172]
[1732893606651,1.5994,3646.2,3645.9,2.74279]
[1732893607098,1.5622,3646.5,3646.1,2.74263]
[1732893607258,2.74216,3646.8,3646.0,1.6368]
[1732893607460,2.74216,3646.8,3646.3,2.74249]
[1732893607683,1.5622,3646.9,3646.3,2.74249]
[1732893607866,1.5622,3646.9,3646.0,1.6368]
[1732893607867,1.992616,3646.9,3646.0,1.6368]
[1732893608063,1.992616,3646.9,3646.5,2.74234]
[1732893608377,4.734716,3646.9,3646.2,2.74255]
[1732893608553,2.74213,3646.8,3646.0,1.6368]
[1732893608750,2.74226,3646.7,3646.1,2.74258]
[1732893608950,2.74226,3646.7,3646.2,2.74257]
[1732893609733,0.53794153,3646.6,3646.5,2.74228]
[1732893609947,1.5622,3646.9,3646.7,2.74219]
[1732893610095,1.5622,3646.9,3646.5,2.74234]
[1732893610736,0.5590491,3646.8,3646.2,0.548529]
[1732893610891,2.74221,3646.7,3646.1,2.74261]
[1732893611094,0.5590491,3646.8,3645.9,2.74279]
[1732893611303,3.3012191,3646.8,3646.1,2.7426]
[1732893611497,0.5590491,3646.8,3646.1,2.7426]
[1732893611698,2.74226,3646.7,3646.1,2.7426]
[1732893611921,0.5590491,3646.8,3646.1,2.7426]
[1732893612232,3.3011891,3646.8,3646.1,2.7426]
[1732893612436,3.3011891,3646.8,3646.2,2.74258]
[1732893612620,2.7422,3646.7,3645.9,2.7428]
[1732893612828,2.74229,3646.6,3645.9,0.4918456]
[1732893613000,4.32723,3646.2,3645.6,0.576056]
[1732893613343,1.5846,3646.2,3645.8,2.74282]
[1732893613635,1.5846,3646.2,3645.1,2.74335]
[1732893613636,1.5846,3646.2,3645.0,2.74342]
[1732893613839,1.5846,3646.2,3644.8,1.8043]
[1732893613840,3.20084698,3646.8,3645.3,2.74323]
[1732893613841,1.5813,3645.9,3645.3,2.74323]
[1732893614142,1.5813,3645.9,3645.0,2.74346]
[1732893614344,2.74298,3645.7,3645.1,3.170726]
[1732893614739,2.74298,3645.7,3645.0,2.74345]
[1732893614740,2.74299,3645.7,3645.0,2.74345]
[1732893615046,4.32412,3645.9,3644.4,1.5915]
[1732893615207,0.5619077,3645.4,3645.1,2.7434]
[1732893615410,0.5619077,3645.4,3644.8,2.74358]
[1732893615752,1.5497,3645.3,3645.1,2.74337]
[1732893615906,1.5497,3645.3,3645.1,2.74338]
[1732893616112,1.5497,3645.3,3644.4,1.5915]
[1732893616312,1.5497,3645.3,3644.9,2.74355]
[1732893616751,1.5497,3645.3,3644.5,1.02516179]
[1732893616966,1.5497,3645.3,3644.4,4.33539]
[1732893617175,1.5497,3645.3,3645.0,2.74342]
[1732893617461,1.5497,3645.3,3645.1,2.7434]
[1732893617665,2.74341,3645.1,3644.3,3.0]
[1732893617880,0.5619077,3645.4,3643.0,0.38081196]
[1732893617881,2.74371,3644.7,3643.7,1.588]
[1732893618029,0.5619077,3645.4,3643.0,0.36244597]
[1732893618030,2.74411,3644.2,3643.3,1.588]
[1732893618230,1.5308,3644.4,3643.5,2.74461]
[1732893618536,4.27475,3644.4,3643.8,2.74437]
[1732893618735,4.27475,3644.4,3643.6,2.74448]
[1732893618736,0.55242287,3644.2,3643.6,2.74448]
[1732893618936,0.55242287,3644.2,3643.6,0.707716]
[1732893619229,0.55242287,3644.2,3643.6,3.452216]
[1732893619462,0.55242287,3644.2,3643.7,2.74443]
[1732893619975,0.55242287,3644.2,3643.8,2.74438]
[1732893620270,0.55242287,3644.2,3643.6,3.452206]
[1732893620783,0.55242287,3644.2,3643.6,2.74449]
[1732893621148,0.55242287,3644.2,3643.7,2.74443]
[1732893621346,0.55242287,3644.2,3643.5,2.74457]
[1732893621658,0.55242287,3644.2,3643.6,2.74448]
[1732893621979,4.25387,3644.1,3643.5,2.74459]
[1732893622339,1.5097,3644.1,3643.6,2.7445]
[1732893623264,2.74429,3644.0,3643.2,2.74482]
[1732893623461,2.74429,3644.0,3643.3,2.74475]
[1732893623667,2.74429,3644.0,3643.4,2.74467]
[1732893623869,2.74431,3643.9,3643.3,2.74473]
[1732893624262,4.2539,3644.1,3643.4,2.74468]
[1732893624523,1.5097,3644.1,3643.4,2.74468]
[1732893624695,2.74424,3644.0,3643.4,2.74468]
[1732893624909,1.5097,3644.1,3643.3,2.74476]
[1732893625093,1.5097,3644.1,3643.3,3.3485959]
[1732893625094,4.25391,3644.1,3643.3,3.3485959]
[1732893625299,4.25391,3644.1,3643.5,2.74459]
[1732893625495,1.5097,3644.1,3643.1,2.74491]
[1732893625725,1.5004,3645.1,3643.5,2.74461]
[1732893625929,1.5004,3645.1,3644.6,2.74372]
[1732893626133,1.5004,3645.1,3643.6,5.84743079]
[1732893626134,1.5004,3645.1,3644.0,5.48846]
[1732893626425,1.5004,3645.1,3644.5,2.7438]
[1732893626726,1.5004,3645.1,3643.7,2.74445]
[1732893626925,4.24383,3645.1,3644.4,2.74387]
[1732893627136,1.5004,3645.1,3644.8,2.74362]
[1732893627493,0.55675492,3644.9,3644.8,2.74362]
[1732893628306,1.5573,3645.6,3645.1,2.74335]
[1732893628603,1.5573,3645.6,3644.7,2.74371]
[1732893628833,1.5573,3645.6,3645.2,2.74328]
[1732893629140,0.55999187,3645.3,3645.2,2.74328]
[1732893630011,0.55999187,3645.3,3645.2,3.29195]
[1732893631257,1.5811,3646.2,3645.8,2.74288]
[1732893631419,1.5811,3646.2,3645.9,2.7428]
[1732893631753,1.5811,3646.2,3645.3,0.55]
[1732893631909,1.5811,3646.2,3645.7,2.74295]
[1732893632120,1.5811,3646.2,3645.5,2.74305]
[1732893632121,4.32368,3646.2,3645.5,2.74305]
[1732893632320,1.5811,3646.2,3645.5,0.603623]
[1732893632553,1.5811,3646.2,3645.6,2.74301]
[1732893632760,0.54521524,3646.0,3645.6,2.74301]
[1732893632916,0.54521524,3646.0,3645.4,2.7431]
[1732893633424,3.28794524,3646.0,3645.4,2.7431]
[1732893633631,2.64179788,3645.7,3644.1,2.74411]
[1732893633967,2.64179788,3645.7,3643.8,0.28081196]
[1732893633968,1.5001,3645.0,3644.4,2.74388]
[1732893634133,1.5001,3645.0,3644.2,2.74404]
[1732893634338,1.5001,3645.0,3644.0,2.74421]
[1732893634540,4.24359,3645.0,3644.3,2.74399]
[1732893634735,4.24359,3645.0,3644.1,2.74414]
[1732893635067,2.74361,3644.9,3643.9,2.74429]
[1732893635258,1.5001,3645.0,3643.9,2.74431]
[1732893635458,1.5001,3645.0,3644.5,2.74378]
[1732893635821,1.632,3645.5,3644.6,1.6223]
[1732893636151,0.5493806,3645.2,3644.6,2.058908]
[1732893636467,0.5493806,3645.2,3645.1,2.7434]
[1732893636820,1.6446,3646.1,3645.1,2.7434]
[1732893637027,1.6446,3646.1,3645.7,2.74292]
[1732893637440,1.6446,3646.1,3645.3,1.5677]
[1732893637638,0.53489723,3646.3,3646.0,2.74273]
[1732893637866,1.5213,3647.1,3646.8,2.74212]
[1732893638079,1.5213,3647.1,3646.9,2.74204]
[1732893638367,1.5213,3647.9,3647.1,2.74184]
[1732893638580,1.5213,3647.9,3646.1,1.6204]
[1732893638878,0.426253,3647.8,3646.9,2.74199]
[1732893639044,1.5213,3647.9,3646.4,0.55]
[1732893639373,1.5213,3647.9,3647.2,2.74176]
[1732893639596,0.55404381,3647.3,3647.2,2.74182]
[1732893639902,0.54438823,3648.2,3646.6,0.55]
[1732893640202,3.28551823,3648.2,3646.6,0.55]
[1732893640353,2.74123,3648.0,3646.6,4.37408682]
[1732893640558,2.74151,3647.7,3646.8,2.74211]
[1732893640871,2.74115,3648.1,3647.0,2.74195]
[1732893641063,2.74122,3648.0,3647.1,2.7419]
[1732893641260,2.74153,3647.6,3646.8,2.74212]
[1732893641586,1.5592,3647.5,3646.6,2.74227]
[1732893641893,0.56035285,3647.3,3647.0,2.74196]
[1732893642094,1.71512,3647.5,3647.1,2.74185]
[1732893642299,1.71512,3647.5,3646.9,2.74203]
[1732893642460,1.71512,3647.5,3646.7,2.74219]
[1732893642663,2.74169,3647.4,3646.7,2.74219]
[1732893642884,1.71512,3647.5,3646.9,2.74202]
[1732893643196,1.6055,3648.3,3647.2,2.74182]
[1732893643403,3.28429404,3648.0,3646.6,1.6125]
[1732893643566,2.74143,3647.8,3646.9,2.742]
[1732893643763,2.74143,3647.8,3646.7,2.7422]
[1732893643764,1.6165,3647.8,3646.2,1.6125]
[1732893643962,2.74182,3647.3,3646.3,1.01125]
[1732893644163,2.7416,3647.5,3646.4,2.74237]
[1732893644489,2.74183,3647.2,3646.2,4.35504]
[1732893644671,2.74183,3647.2,3646.5,2.74235]
[1732893644878,2.74171,3647.4,3646.5,2.74229]
[1732893645060,0.54325331,3647.2,3645.9,3.2928]
[1732893645265,0.54325331,3647.2,3646.3,2.74249]
[1732893645492,3.28514331,3647.2,3646.4,2.74241]
[1732893645689,0.54325331,3647.2,3646.1,0.55]
[1732893645894,0.54325331,3647.2,3646.0,0.49053]
[1732893646101,0.54325331,3647.2,3646.5,2.74228]
[1732893646400,4.38891,3647.1,3645.8,1.6125]
[1732893646586,2.74211,3646.9,3645.7,2.74295]
[1732893646797,1.647,3647.1,3645.4,4.36171]
[1732893647004,1.647,3647.1,3645.8,2.74282]
[1732893647307,1.647,3645.7,3644.5,1.6186]
[1732893647515,1.647,3645.7,3644.1,1.586]
[1732893647717,1.647,3645.7,3644.3,2.74399]
[1732893647869,2.74318,3645.4,3644.4,2.74393]
[1732893648064,2.74334,3645.2,3644.4,0.548806]
[1732893648288,4.29461,3645.1,3644.0,2.74423]
[1732893648465,4.29461,3645.1,3643.8,0.15504]